[Event "Titled Tuesday Blitz February 01 B 2022"]
[White "Steinberg, Nitzan"]
[Black "Babazada, Khazar"]
[WhiteFideId "2801795"]
[BlackFideId "13413554"]
[WhiteElo "2440"]
[BlackElo "2418"]
[Result "1-0"]
[Round "07"]
[TimeControl "180+1"]
[Date "2022.02.01"]
[WhiteClock "0:00:03"]
[BlackClock "0:00:04"]

1. e4 {[%clk 0:02:56]}  Nf6 {[%clk 0:03:00]} 2. e5 {[%clk 0:02:56]}  Nd5 {[%clk 0:02:59]} 3. d4 {[%clk 0:02:57]}  d6 {[%clk 0:02:58]} 4. Nf3 {[%clk 0:02:57]}  Nb6 {[%clk 0:02:58]} 5. h3 {[%clk 0:02:57]}  g6 {[%clk 0:02:58]} 6. Be2 {[%clk 0:02:55]}  Bg7 {[%clk 0:02:58]} 7. exd6 {[%clk 0:02:56]}  cxd6 {[%clk 0:02:58]} 8. O-O {[%clk 0:02:56]}  O-O {[%clk 0:02:58]} 9. Re1 {[%clk 0:02:57]}  Nc6 {[%clk 0:02:54]} 10. Nc3 {[%clk 0:02:49]}  Bf5 {[%clk 0:02:52]} 11. a3 {[%clk 0:02:45]}  e5 {[%clk 0:02:50]} 12. d5 {[%clk 0:02:40]}  Ne7 {[%clk 0:02:48]} 13. Be3 {[%clk 0:02:33]}  Rc8 {[%clk 0:02:47]} 14. a4 {[%clk 0:02:27]}  a6 {[%clk 0:02:44]} 15. a5 {[%clk 0:02:25]}  Nc4 {[%clk 0:02:44]} 16. Bxc4 {[%clk 0:02:17]}  Rxc4 {[%clk 0:02:45]} 17. Qe2 {[%clk 0:02:13]}  Rc8 {[%clk 0:01:52]} 18. Ra4 {[%clk 0:01:54]}  Bd7 {[%clk 0:01:51]} 19. Rb4 {[%clk 0:01:47]}  Qc7 {[%clk 0:01:51]} 20. Bb6 {[%clk 0:01:45]}  Qb8 {[%clk 0:01:49]} 21. Nd2 {[%clk 0:01:42]}  Rxc3 {[%clk 0:01:23]} 22. bxc3 {[%clk 0:01:41]}  Nxd5 {[%clk 0:01:24]} 23. Rb3 {[%clk 0:01:33]}  Ba4 {[%clk 0:01:22]} 24. Ra3 {[%clk 0:01:23]}  Bc6 {[%clk 0:01:22]} 25. f3 {[%clk 0:01:20]}  Nxb6 {[%clk 0:01:22]} 26. axb6 {[%clk 0:01:20]}  Qd8 {[%clk 0:01:20]} 27. Qf2 {[%clk 0:01:17]}  d5 {[%clk 0:01:21]} 28. Nb3 {[%clk 0:01:11]}  Re8 {[%clk 0:01:21]} 29. Na5 {[%clk 0:01:05]}  Qd6 {[%clk 0:01:14]} 30. Rb3 {[%clk 0:00:58]}  Bf8 {[%clk 0:01:09]} 31. c4 {[%clk 0:00:57]}  d4 {[%clk 0:01:05]} 32. Kh1 {[%clk 0:00:48]}  f5 {[%clk 0:01:05]} 33. Nxc6 {[%clk 0:00:37]}  Qxc6 {[%clk 0:01:05]} 34. f4 {[%clk 0:00:37]}  Qxc4 {[%clk 0:00:54]} 35. fxe5 {[%clk 0:00:32]}  Bb4 {[%clk 0:00:53]} 36. Re2 {[%clk 0:00:20]}  Bc3 {[%clk 0:00:53]} 37. Qf3 {[%clk 0:00:21]}  Re7 {[%clk 0:00:54]} 38. Rb1 {[%clk 0:00:18]}  a5 {[%clk 0:00:54]} 39. g4 {[%clk 0:00:15]}  fxg4 {[%clk 0:00:49]} 40. hxg4 {[%clk 0:00:15]}  Rf7 {[%clk 0:00:47]} 41. Qg2 {[%clk 0:00:15]}  Qe6 {[%clk 0:00:44]} 42. Rf1 {[%clk 0:00:10]}  Rxf1+ {[%clk 0:00:27]} 43. Qxf1 {[%clk 0:00:10]}  Qd5+ {[%clk 0:00:18]} 44. Kh2 {[%clk 0:00:08]}  d3 {[%clk 0:00:13]} 45. e6 {[%clk 0:00:07]}  Be5+ {[%clk 0:00:09]} 46. Kh3 {[%clk 0:00:08]}  Qxe6 {[%clk 0:00:09]} 47. cxd3 {[%clk 0:00:08]}  Qd5 {[%clk 0:00:08]} 48. Re4 {[%clk 0:00:07]}  Kg7 {[%clk 0:00:05]} 49. Qf3 {[%clk 0:00:05]}  Qd6 {[%clk 0:00:04]} 50. d4 {[%clk 0:00:04]}  Bf6 {[%clk 0:00:04]} 51. d5 {[%clk 0:00:04]}  Qxb6 {[%clk 0:00:04]} 52. Re6 {[%clk 0:00:03]}  Qb1 {[%clk 0:00:04]} 53. Qxf6+ {[%clk 0:00:03]} 1-0


[Site "https://www.chess.com"]

[Event "Titled Tuesday Blitz February 01 B 2022"]
[White "Suarez Uriel, Adrian"]
[Black "Blohberger, Felix"]
[WhiteFideId "22230874"]
[BlackFideId "1632051"]
[WhiteElo "2316"]
[BlackElo "2474"]
[Result "0-1"]
[Round "07"]
[TimeControl "180+1"]
[Date "2022.02.01"]
[WhiteClock "0:00:01"]
[BlackClock "0:00:24"]

1. e4 {[%clk 0:03:00]}  c5 {[%clk 0:02:57]} 2. Ne2 {[%clk 0:02:59]}  Nf6 {[%clk 0:02:55]} 3. Nbc3 {[%clk 0:02:59]}  d6 {[%clk 0:02:54]} 4. d4 {[%clk 0:02:57]}  cxd4 {[%clk 0:02:54]} 5. Nxd4 {[%clk 0:02:58]}  a6 {[%clk 0:02:55]} 6. h3 {[%clk 0:02:58]}  e6 {[%clk 0:02:54]} 7. g4 {[%clk 0:02:57]}  Nfd7 {[%clk 0:02:54]} 8. Bg2 {[%clk 0:02:53]}  b5 {[%clk 0:02:53]} 9. a3 {[%clk 0:02:50]}  Bb7 {[%clk 0:02:53]} 10. Be3 {[%clk 0:02:50]}  Be7 {[%clk 0:02:53]} 11. Qd2 {[%clk 0:02:29]}  Nc6 {[%clk 0:02:52]} 12. O-O-O {[%clk 0:02:28]}  Nce5 {[%clk 0:02:42]} 13. Bf1 {[%clk 0:02:25]}  Nb6 {[%clk 0:02:37]} 14. Kb1 {[%clk 0:02:13]}  Nbc4 {[%clk 0:02:35]} 15. Qe1 {[%clk 0:02:12]}  Rc8 {[%clk 0:02:29]} 16. Bc1 {[%clk 0:02:08]}  Qa5 {[%clk 0:02:10]} 17. f4 {[%clk 0:02:04]}  Nd7 {[%clk 0:02:03]} 18. Bxc4 {[%clk 0:01:48]}  Rxc4 {[%clk 0:02:04]} 19. g5 {[%clk 0:01:41]}  O-O {[%clk 0:02:01]} 20. Nd5 {[%clk 0:01:38]}  Qd8 {[%clk 0:01:59]} 21. Nxe7+ {[%clk 0:01:38]}  Qxe7 {[%clk 0:01:59]} 22. f5 {[%clk 0:01:36]}  exf5 {[%clk 0:01:39]} 23. b3 {[%clk 0:00:57]}  Rxd4 {[%clk 0:01:36]} 24. Rxd4 {[%clk 0:00:55]}  Bxe4 {[%clk 0:01:37]} 25. Rf1 {[%clk 0:00:54]}  Rc8 {[%clk 0:01:35]} 26. Rf2 {[%clk 0:00:54]}  Qe6 {[%clk 0:01:09]} 27. Kb2 {[%clk 0:00:45]}  Ne5 {[%clk 0:01:00]} 28. Bf4 {[%clk 0:00:38]}  g6 {[%clk 0:00:43]} 29. Qd2 {[%clk 0:00:31]}  Rxc2+ {[%clk 0:00:40]} 30. Qxc2 {[%clk 0:00:29]}  Bxc2 {[%clk 0:00:40]} 31. Rxc2 {[%clk 0:00:30]}  Kg7 {[%clk 0:00:37]} 32. Ka2 {[%clk 0:00:17]}  Nf3 {[%clk 0:00:32]} 33. Rxd6 {[%clk 0:00:06]}  Qe4 {[%clk 0:00:33]} 34. Rc7 {[%clk 0:00:04]}  Qxf4 {[%clk 0:00:33]} 35. Rdd7 {[%clk 0:00:05]}  Qh2+ {[%clk 0:00:32]} 36. Kb1 {[%clk 0:00:04]}  Ne5 {[%clk 0:00:32]} 37. Re7 {[%clk 0:00:04]}  h6 {[%clk 0:00:28]} 38. h4 {[%clk 0:00:04]}  hxg5 {[%clk 0:00:26]} 39. hxg5 {[%clk 0:00:05]}  Qg1+ {[%clk 0:00:25]} 40. Kb2 {[%clk 0:00:05]}  Qd4+ {[%clk 0:00:25]} 41. Kc2 {[%clk 0:00:04]}  f4 {[%clk 0:00:25]} 42. Rcd7 {[%clk 0:00:01]}  Nxd7 {[%clk 0:00:24]} 0-1


[Site "https://www.chess.com"]

[Event "Titled Tuesday Blitz February 01 B 2022"]
[White "Tang, Andrew"]
[Black "Bok, Benjamin"]
[WhiteFideId "2059630"]
[BlackFideId "1017063"]
[WhiteElo "2584"]
[BlackElo "2658"]
[Result "0-1"]
[Round "07"]
[TimeControl "180+1"]
[Date "2022.02.01"]
[WhiteClock "0:00:02"]
[BlackClock "0:00:37"]

1. d4 {[%clk 0:03:00]}  d5 {[%clk 0:03:00]} 2. Bf4 {[%clk 0:02:59]}  Nf6 {[%clk 0:03:00]} 3. e3 {[%clk 0:03:00]}  c5 {[%clk 0:02:58]} 4. Nc3 {[%clk 0:02:59]}  cxd4 {[%clk 0:02:58]} 5. exd4 {[%clk 0:02:59]}  a6 {[%clk 0:02:58]} 6. Nf3 {[%clk 0:03:00]}  Nc6 {[%clk 0:02:58]} 7. Ne5 {[%clk 0:03:00]}  Bd7 {[%clk 0:02:56]} 8. g3 {[%clk 0:03:00]}  e6 {[%clk 0:02:55]} 9. Bg2 {[%clk 0:03:00]}  Nxe5 {[%clk 0:02:55]} 10. dxe5 {[%clk 0:02:49]}  Ng8 {[%clk 0:02:55]} 11. O-O {[%clk 0:02:42]}  Ne7 {[%clk 0:02:53]} 12. Ne2 {[%clk 0:02:35]}  Rc8 {[%clk 0:02:49]} 13. Nd4 {[%clk 0:02:35]}  Ng6 {[%clk 0:02:47]} 14. Re1 {[%clk 0:02:32]}  Nxf4 {[%clk 0:02:38]} 15. gxf4 {[%clk 0:02:32]}  g6 {[%clk 0:02:39]} 16. Qg4 {[%clk 0:02:27]}  Qb6 {[%clk 0:02:32]} 17. Rad1 {[%clk 0:02:15]}  Bc5 {[%clk 0:02:28]} 18. c3 {[%clk 0:02:07]}  Qxb2 {[%clk 0:02:28]} 19. Bxd5 {[%clk 0:00:20]}  Bxd4 {[%clk 0:02:10]} 20. Rxd4 {[%clk 0:00:05]}  Qxc3 {[%clk 0:01:40]} 21. Rde4 {[%clk 0:00:04]}  exd5 {[%clk 0:01:19]} 22. e6 {[%clk 0:00:04]}  fxe6 {[%clk 0:01:19]} 23. Rxe6+ {[%clk 0:00:04]}  Kf8 {[%clk 0:01:12]} 24. Qg5 {[%clk 0:00:05]}  Bxe6 {[%clk 0:01:08]} 25. Rxe6 {[%clk 0:00:06]}  Re8 {[%clk 0:01:05]} 26. Rd6 {[%clk 0:00:06]}  Re7 {[%clk 0:00:40]} 27. Rd8+ {[%clk 0:00:02]}  Kf7 {[%clk 0:00:37]} 0-1


[Site "https://www.chess.com"]

[Event "Titled Tuesday Blitz February 01 B 2022"]
[White "Timofeev, Artyom"]
[Black "Kosakowski, Jakub"]
[WhiteFideId "4140419"]
[BlackFideId "1185080"]
[WhiteElo "2583"]
[BlackElo "2476"]
[Result "1-0"]
[Round "07"]
[TimeControl "180+1"]
[Date "2022.02.01"]
[WhiteClock "0:01:39"]
[BlackClock "0:00:43"]

1. d4 {[%clk 0:03:00]}  g6 {[%clk 0:02:53]} 2. e4 {[%clk 0:03:00]}  Bg7 {[%clk 0:02:53]} 3. Nf3 {[%clk 0:03:00]}  d6 {[%clk 0:02:53]} 4. c3 {[%clk 0:03:00]}  Nf6 {[%clk 0:02:54]} 5. Bd3 {[%clk 0:03:00]}  O-O {[%clk 0:02:54]} 6. O-O {[%clk 0:03:00]}  Nc6 {[%clk 0:02:54]} 7. Re1 {[%clk 0:03:00]}  e5 {[%clk 0:02:54]} 8. Nbd2 {[%clk 0:03:00]}  Re8 {[%clk 0:02:53]} 9. h3 {[%clk 0:03:00]}  Nh5 {[%clk 0:02:39]} 10. Nb3 {[%clk 0:03:00]}  a5 {[%clk 0:02:38]} 11. a4 {[%clk 0:02:54]}  exd4 {[%clk 0:02:37]} 12. Nbxd4 {[%clk 0:02:53]}  Bd7 {[%clk 0:02:36]} 13. Bg5 {[%clk 0:02:51]}  Bf6 {[%clk 0:02:32]} 14. Be3 {[%clk 0:02:51]}  Ng7 {[%clk 0:02:31]} 15. Nb5 {[%clk 0:02:51]}  Ne6 {[%clk 0:02:27]} 16. Qd2 {[%clk 0:02:48]}  Bg7 {[%clk 0:02:25]} 17. Rad1 {[%clk 0:02:47]}  Qe7 {[%clk 0:02:22]} 18. Bc2 {[%clk 0:02:46]}  Rad8 {[%clk 0:02:22]} 19. Bb3 {[%clk 0:02:41]}  Ne5 {[%clk 0:02:20]} 20. Qe2 {[%clk 0:02:30]}  Nxf3+ {[%clk 0:02:10]} 21. Qxf3 {[%clk 0:02:30]}  Bc6 {[%clk 0:02:11]} 22. Bd5 {[%clk 0:02:25]}  Nc5 {[%clk 0:01:49]} 23. Bxc6 {[%clk 0:02:15]}  bxc6 {[%clk 0:01:49]} 24. Na7 {[%clk 0:02:15]}  Qxe4 {[%clk 0:01:40]} 25. Nxc6 {[%clk 0:02:08]}  Qxf3 {[%clk 0:01:31]} 26. gxf3 {[%clk 0:02:08]}  Ra8 {[%clk 0:01:32]} 27. Bxc5 {[%clk 0:02:05]}  dxc5 {[%clk 0:01:33]} 28. Rxe8+ {[%clk 0:01:59]}  Rxe8 {[%clk 0:01:34]} 29. Rd8 {[%clk 0:01:55]}  Rxd8 {[%clk 0:01:27]} 30. Nxd8 {[%clk 0:01:55]}  Bh6 {[%clk 0:01:19]} 31. Nb7 {[%clk 0:01:50]}  Bc1 {[%clk 0:01:11]} 32. b3 {[%clk 0:01:50]}  Bd2 {[%clk 0:01:11]} 33. Nxa5 {[%clk 0:01:50]}  Bxc3 {[%clk 0:01:11]} 34. Nc4 {[%clk 0:01:49]}  Kf8 {[%clk 0:00:40]} 35. a5 {[%clk 0:01:49]}  Bxa5 {[%clk 0:00:40]} 36. Nxa5 {[%clk 0:01:49]}  Ke7 {[%clk 0:00:41]} 37. Nb7 {[%clk 0:01:44]}  Ke6 {[%clk 0:00:41]} 38. Nxc5+ {[%clk 0:01:44]}  Kd5 {[%clk 0:00:42]} 39. Ne4 {[%clk 0:01:44]}  Kd4 {[%clk 0:00:41]} 40. Kf1 {[%clk 0:01:43]}  f5 {[%clk 0:00:42]} 41. Ng5 {[%clk 0:01:40]}  Kc3 {[%clk 0:00:42]} 42. Nxh7 {[%clk 0:01:38]}  Kxb3 {[%clk 0:00:42]} 43. Nf8 {[%clk 0:01:39]}  c5 {[%clk 0:00:42]} 44. Nxg6 {[%clk 0:01:38]}  c4 {[%clk 0:00:43]} 45. Nf4 {[%clk 0:01:39]}  c3 {[%clk 0:00:43]} 46. h4 {[%clk 0:01:39]} 1-0


[Site "https://www.chess.com"]

[Event "Titled Tuesday Blitz February 01 B 2022"]
[White "Turski, Bartlomiej"]
[Black "Niemann, Hans Moke"]
[WhiteFideId "21810567"]
[BlackFideId "2093596"]
[WhiteElo "1935"]
[BlackElo "2636"]
[Result "0-1"]
[Round "07"]
[TimeControl "180+1"]
[Date "2022.02.01"]
[WhiteClock "0:00:10"]
[BlackClock "0:02:03"]

1. e4 {[%clk 0:03:00]}  e5 {[%clk 0:02:56]} 2. Nf3 {[%clk 0:02:57]}  Nc6 {[%clk 0:02:57]} 3. Bc4 {[%clk 0:02:54]}  Nf6 {[%clk 0:02:56]} 4. Ng5 {[%clk 0:02:45]}  d5 {[%clk 0:02:56]} 5. exd5 {[%clk 0:02:45]}  Na5 {[%clk 0:02:56]} 6. Bb5+ {[%clk 0:02:45]}  c6 {[%clk 0:02:57]} 7. dxc6 {[%clk 0:02:44]}  bxc6 {[%clk 0:02:58]} 8. Bd3 {[%clk 0:02:43]}  Nd5 {[%clk 0:02:58]} 9. h4 {[%clk 0:02:41]}  Nf4 {[%clk 0:02:53]} 10. Bf1 {[%clk 0:02:35]}  h6 {[%clk 0:02:50]} 11. Nf3 {[%clk 0:02:31]}  e4 {[%clk 0:02:47]} 12. d4 {[%clk 0:02:29]}  Ne6 {[%clk 0:02:33]} 13. Nfd2 {[%clk 0:02:27]}  Qxd4 {[%clk 0:02:31]} 14. Qe2 {[%clk 0:02:27]}  f5 {[%clk 0:02:26]} 15. Qh5+ {[%clk 0:01:41]}  Kd8 {[%clk 0:02:25]} 16. Qxf5 {[%clk 0:01:13]}  Nc5 {[%clk 0:02:25]} 17. Qf4 {[%clk 0:00:53]}  Bd6 {[%clk 0:02:22]} 18. Qe3 {[%clk 0:00:51]}  Qxe3+ {[%clk 0:02:23]} 19. fxe3 {[%clk 0:00:52]}  Bg3+ {[%clk 0:02:23]} 20. Kd1 {[%clk 0:00:48]}  Nab7 {[%clk 0:02:23]} 21. Nb3 {[%clk 0:00:46]}  Kc7 {[%clk 0:02:15]} 22. c3 {[%clk 0:00:40]}  Rd8+ {[%clk 0:02:14]} 23. Kc2 {[%clk 0:00:39]}  Nd3 {[%clk 0:02:14]} 24. Bxd3 {[%clk 0:00:25]}  exd3+ {[%clk 0:02:15]} 25. Kd2 {[%clk 0:00:26]}  Nd6 {[%clk 0:02:07]} 26. Nd4 {[%clk 0:00:24]}  c5 {[%clk 0:02:05]} 27. Kxd3 {[%clk 0:00:16]}  Ba6+ {[%clk 0:02:04]} 28. Kc2 {[%clk 0:00:13]}  cxd4 {[%clk 0:02:04]} 29. exd4 {[%clk 0:00:14]}  Re8 {[%clk 0:02:05]} 30. Nd2 {[%clk 0:00:13]}  Re2 {[%clk 0:02:05]} 31. b3 {[%clk 0:00:13]}  Rf8 {[%clk 0:02:05]} 32. c4 {[%clk 0:00:13]}  Rff2 {[%clk 0:02:05]} 33. Rh3 {[%clk 0:00:11]}  Rxg2 {[%clk 0:02:05]} 34. Kd3 {[%clk 0:00:11]}  Bc8 {[%clk 0:02:02]} 35. Rh1 {[%clk 0:00:11]}  Bf5+ {[%clk 0:02:02]} 36. Kc3 {[%clk 0:00:11]}  Bf4 {[%clk 0:02:03]} 37. Rf1 {[%clk 0:00:09]}  Bxd2+ {[%clk 0:02:02]} 38. Bxd2 {[%clk 0:00:10]}  Rxd2 {[%clk 0:02:03]} 39. Rae1 {[%clk 0:00:09]}  a5 {[%clk 0:02:03]} 40. c5 {[%clk 0:00:10]}  Rc2# {[%clk 0:02:03]} 0-1


[Site "https://www.chess.com"]

[Event "Titled Tuesday Blitz February 01 B 2022"]
[White "Vakhlamov, Igor L."]
[Black "Dobrov, Vladimir"]
[WhiteFideId "24126748"]
[BlackFideId "4136594"]
[WhiteElo "2401"]
[BlackElo "2614"]
[Result "0-1"]
[Round "07"]
[TimeControl "180+1"]
[Date "2022.02.01"]
[WhiteClock "0:00:10"]
[BlackClock "0:00:23"]

1. e4 {[%clk 0:03:00]}  c5 {[%clk 0:02:59]} 2. Nf3 {[%clk 0:03:00]}  Nc6 {[%clk 0:02:59]} 3. Nc3 {[%clk 0:03:01]}  e6 {[%clk 0:02:58]} 4. Bb5 {[%clk 0:03:01]}  Nge7 {[%clk 0:02:58]} 5. O-O {[%clk 0:03:00]}  b6 {[%clk 0:02:55]} 6. d4 {[%clk 0:02:54]}  cxd4 {[%clk 0:02:55]} 7. Nxd4 {[%clk 0:02:55]}  Bb7 {[%clk 0:02:55]} 8. Be3 {[%clk 0:02:47]}  Qc7 {[%clk 0:02:43]} 9. a4 {[%clk 0:02:34]}  Ng6 {[%clk 0:02:38]} 10. f4 {[%clk 0:02:31]}  Bc5 {[%clk 0:02:29]} 11. Kh1 {[%clk 0:02:19]}  O-O {[%clk 0:02:25]} 12. f5 {[%clk 0:02:12]}  Nge5 {[%clk 0:02:20]} 13. f6 {[%clk 0:02:12]}  gxf6 {[%clk 0:02:16]} 14. Qd2 {[%clk 0:02:01]}  Nxd4 {[%clk 0:01:57]} 15. Bxd4 {[%clk 0:02:02]}  Qd6 {[%clk 0:01:57]} 16. Rad1 {[%clk 0:01:44]}  Qxd4 {[%clk 0:01:54]} 17. Qxd4 {[%clk 0:01:45]}  Bxd4 {[%clk 0:01:55]} 18. Rxd4 {[%clk 0:01:45]}  Kg7 {[%clk 0:01:50]} 19. Rd2 {[%clk 0:01:29]}  Rac8 {[%clk 0:01:45]} 20. Rdf2 {[%clk 0:01:24]}  a6 {[%clk 0:01:42]} 21. Bd3 {[%clk 0:01:23]}  Rc6 {[%clk 0:01:14]} 22. Rxf6 {[%clk 0:01:19]}  Rd6 {[%clk 0:01:14]} 23. R6f2 {[%clk 0:01:03]}  Rd4 {[%clk 0:01:08]} 24. Rd1 {[%clk 0:00:58]}  Rc8 {[%clk 0:00:59]} 25. Rfd2 {[%clk 0:00:58]}  Rb4 {[%clk 0:00:57]} 26. h3 {[%clk 0:00:28]}  Rxb2 {[%clk 0:00:57]} 27. Ne2 {[%clk 0:00:27]}  Rb4 {[%clk 0:00:54]} 28. Ra1 {[%clk 0:00:28]}  Rb2 {[%clk 0:00:46]} 29. Ra3 {[%clk 0:00:24]}  Nxd3 {[%clk 0:00:42]} 30. Raxd3 {[%clk 0:00:22]}  Rcxc2 {[%clk 0:00:41]} 31. Rxc2 {[%clk 0:00:17]}  Rxc2 {[%clk 0:00:42]} 32. Rxd7 {[%clk 0:00:16]}  Bxe4 {[%clk 0:00:41]} 33. Nf4 {[%clk 0:00:16]}  e5 {[%clk 0:00:38]} 34. Nh5+ {[%clk 0:00:06]}  Kg6 {[%clk 0:00:37]} 35. Ng3 {[%clk 0:00:04]}  Bxg2+ {[%clk 0:00:37]} 36. Kg1 {[%clk 0:00:04]}  Bxh3 {[%clk 0:00:35]} 37. Rd6+ {[%clk 0:00:04]}  Be6 {[%clk 0:00:35]} 38. Ne4 {[%clk 0:00:04]}  Rc4 {[%clk 0:00:32]} 39. Nd2 {[%clk 0:00:03]}  Rd4 {[%clk 0:00:30]} 40. Rxd4 {[%clk 0:00:02]}  exd4 {[%clk 0:00:30]} 41. Kf2 {[%clk 0:00:03]}  Bd5 {[%clk 0:00:29]} 42. Ke2 {[%clk 0:00:03]}  Kf5 {[%clk 0:00:26]} 43. Kd3 {[%clk 0:00:04]}  Ke5 {[%clk 0:00:26]} 44. a5 {[%clk 0:00:04]}  bxa5 {[%clk 0:00:26]} 45. Kc2 {[%clk 0:00:04]}  h5 {[%clk 0:00:25]} 46. Kb2 {[%clk 0:00:05]}  h4 {[%clk 0:00:25]} 47. Ka3 {[%clk 0:00:06]}  h3 {[%clk 0:00:26]} 48. Ka4 {[%clk 0:00:07]}  h2 {[%clk 0:00:26]} 49. Kxa5 {[%clk 0:00:07]}  h1=Q {[%clk 0:00:25]} 50. Kxa6 {[%clk 0:00:08]}  Qd1 {[%clk 0:00:24]} 51. Kb6 {[%clk 0:00:09]}  Qxd2 {[%clk 0:00:24]} 52. Kc7 {[%clk 0:00:09]}  Qb4 {[%clk 0:00:24]} 53. Kd8 {[%clk 0:00:10]}  Kd6 {[%clk 0:00:23]} 54. Ke8 {[%clk 0:00:10]}  Qb8# {[%clk 0:00:23]} 0-1


[Site "https://www.chess.com"]

[Event "Titled Tuesday Blitz February 01 B 2022"]
[White "Xiong, Jeffery"]
[Black "Boros, Denes"]
[WhiteFideId "2047640"]
[BlackFideId "722340"]
[WhiteElo "2727"]
[BlackElo "2464"]
[Result "1-0"]
[Round "07"]
[TimeControl "180+1"]
[Date "2022.02.01"]
[WhiteClock "0:01:08"]
[BlackClock "0:00:54"]

1. Nf3 {[%clk 0:03:00]}  Nf6 {[%clk 0:02:59]} 2. c4 {[%clk 0:03:00]}  g6 {[%clk 0:02:56]} 3. b4 {[%clk 0:03:01]}  Nc6 {[%clk 0:02:55]} 4. a3 {[%clk 0:02:49]}  e5 {[%clk 0:02:52]} 5. d3 {[%clk 0:02:45]}  Bg7 {[%clk 0:02:49]} 6. Bb2 {[%clk 0:02:45]}  d6 {[%clk 0:02:43]} 7. g3 {[%clk 0:02:39]}  Bf5 {[%clk 0:02:39]} 8. Bg2 {[%clk 0:02:39]}  Qd7 {[%clk 0:02:38]} 9. Nc3 {[%clk 0:02:39]}  O-O {[%clk 0:02:37]} 10. O-O {[%clk 0:02:36]}  Nd4 {[%clk 0:02:34]} 11. Nd2 {[%clk 0:02:17]}  Bh3 {[%clk 0:02:25]} 12. e3 {[%clk 0:02:16]}  Bxg2 {[%clk 0:02:25]} 13. Kxg2 {[%clk 0:02:17]}  Ne6 {[%clk 0:02:25]} 14. Nd5 {[%clk 0:02:14]}  c6 {[%clk 0:02:22]} 15. Nxf6+ {[%clk 0:02:14]}  Bxf6 {[%clk 0:02:23]} 16. h4 {[%clk 0:02:15]}  Bg7 {[%clk 0:02:12]} 17. h5 {[%clk 0:02:06]}  Rae8 {[%clk 0:02:04]} 18. Rh1 {[%clk 0:02:02]}  d5 {[%clk 0:01:52]} 19. Qe2 {[%clk 0:01:58]}  f5 {[%clk 0:01:49]} 20. hxg6 {[%clk 0:01:58]}  hxg6 {[%clk 0:01:50]} 21. cxd5 {[%clk 0:01:57]}  cxd5 {[%clk 0:01:46]} 22. Rh4 {[%clk 0:01:49]}  Rc8 {[%clk 0:01:40]} 23. Nf3 {[%clk 0:01:45]}  e4 {[%clk 0:01:26]} 24. Ne5 {[%clk 0:01:45]}  exd3 {[%clk 0:01:18]} 25. Nxd7 {[%clk 0:01:27]}  dxe2 {[%clk 0:01:18]} 26. Bxg7 {[%clk 0:01:27]}  Rfd8 {[%clk 0:01:08]} 27. Be5 {[%clk 0:01:25]}  Rc2 {[%clk 0:00:59]} 28. Rh8+ {[%clk 0:01:22]}  Kf7 {[%clk 0:00:59]} 29. Rh7+ {[%clk 0:01:23]}  Kg8 {[%clk 0:00:57]} 30. Nf6+ {[%clk 0:01:16]}  Kf8 {[%clk 0:00:57]} 31. Rah1 {[%clk 0:01:15]}  Rd2 {[%clk 0:00:54]} 32. Rxb7 {[%clk 0:01:08]} 1-0


[Site "https://www.chess.com"]

[Event "Titled Tuesday Blitz February 01 B 2022"]
[White "Yuan, Qingyu"]
[Black "Ibarra Jerez, Jose Carlos"]
[WhiteFideId "8609772"]
[BlackFideId "2226332"]
[WhiteElo "2359"]
[BlackElo "2626"]
[Result "0-1"]
[Round "07"]
[TimeControl "180+1"]
[Date "2022.02.01"]
[WhiteClock "0:00:02"]
[BlackClock "0:00:30"]

1. Nf3 {[%clk 0:03:00]}  Nf6 {[%clk 0:02:59]} 2. g3 {[%clk 0:03:01]}  g6 {[%clk 0:02:58]} 3. b3 {[%clk 0:03:01]}  Bg7 {[%clk 0:02:58]} 4. Bb2 {[%clk 0:03:02]}  d6 {[%clk 0:02:58]} 5. d4 {[%clk 0:03:01]}  O-O {[%clk 0:02:56]} 6. Bg2 {[%clk 0:03:02]}  b5 {[%clk 0:02:57]} 7. Ne5 {[%clk 0:02:52]}  dxe5 {[%clk 0:02:51]} 8. Bxa8 {[%clk 0:02:52]}  c6 {[%clk 0:02:50]} 9. a4 {[%clk 0:02:33]}  b4 {[%clk 0:02:42]} 10. O-O {[%clk 0:02:27]}  Nd5 {[%clk 0:02:21]} 11. dxe5 {[%clk 0:02:01]}  Nc7 {[%clk 0:02:16]} 12. Nd2 {[%clk 0:01:12]}  Nxa8 {[%clk 0:02:14]} 13. Nc4 {[%clk 0:01:13]}  Qc7 {[%clk 0:01:58]} 14. e4 {[%clk 0:01:04]}  c5 {[%clk 0:01:53]} 15. Qe2 {[%clk 0:00:55]}  Nc6 {[%clk 0:01:50]} 16. f4 {[%clk 0:00:54]}  Ba6 {[%clk 0:01:48]} 17. Rad1 {[%clk 0:00:53]}  Nb6 {[%clk 0:01:47]} 18. Rd2 {[%clk 0:00:46]}  Na5 {[%clk 0:01:41]} 19. Rfd1 {[%clk 0:00:37]}  Bxc4 {[%clk 0:01:41]} 20. bxc4 {[%clk 0:00:35]}  Naxc4 {[%clk 0:01:41]} 21. a5 {[%clk 0:00:33]}  Nxb2 {[%clk 0:01:32]} 22. axb6 {[%clk 0:00:33]}  Qxb6 {[%clk 0:01:33]} 23. Ra1 {[%clk 0:00:30]}  a5 {[%clk 0:01:26]} 24. Kg2 {[%clk 0:00:21]}  a4 {[%clk 0:01:24]} 25. h4 {[%clk 0:00:11]}  a3 {[%clk 0:01:20]} 26. h5 {[%clk 0:00:12]}  c4 {[%clk 0:01:12]} 27. hxg6 {[%clk 0:00:10]}  hxg6 {[%clk 0:01:11]} 28. Rd7 {[%clk 0:00:07]}  e6 {[%clk 0:01:02]} 29. Rh1 {[%clk 0:00:07]}  a2 {[%clk 0:00:53]} 30. Qg4 {[%clk 0:00:05]}  Rd8 {[%clk 0:00:49]} 31. Rxd8+ {[%clk 0:00:02]}  Qxd8 {[%clk 0:00:50]} 32. Qh3 {[%clk 0:00:03]}  Qd2+ {[%clk 0:00:48]} 33. Kf3 {[%clk 0:00:03]}  Nd1 {[%clk 0:00:37]} 34. Qh4 {[%clk 0:00:02]}  a1=Q {[%clk 0:00:32]} 35. Qd8+ {[%clk 0:00:02]}  Qxd8 {[%clk 0:00:30]} 0-1


[Site "https://www.chess.com"]